[Event "7th Cattolica Open-B 2020"]
[Site "Cattolica"]
[Date "2020.09.03"]
[Round "4.8"]
[White "Marani, Luca"]
[Black "Modena, Giorgio"]
[Result "1-0"]
[ECO "C13"]
[WhiteElo "1736"]
[BlackElo "1869"]
[Annotator "NA RC"]
[PlyCount "80"]
[EventDate "2020.08.31"]
[EventType "swiss"]
[EventCountry "ITA"]
[SourceTitle "playchess.com"]
[Source "ChessBase"]
[SourceQuality "1"]
[TimeControl "5400+30"]

{[%evp 21,80,-73,-82,32767,-67,-87,-64,-91,-79,-122,-149,-156,-160,-164,-129,-224,-213,-195,-128,-128,0,0,0,0,0,0,31,14,32,14,0,4,192,166,32767,32767,350,393,356,0,1241,2093,1382,0,10,32767,32767,32767,32767,32767,355,387,32767,32767,32767,32767,32767,32767,32767,32767,541]} 1. e4 {[%emt 0:06:25]} e6 {[%emt 0:00:00]} 2. d4 {[%emt 0:00:17]} d5 {[%emt 0:00:00]} 3. Nc3 {[%emt 0:00:16]} Nf6 {[%emt 0:00:00]} 4. Bg5 {[%emt 0:00:15]} dxe4 {[%emt 0:00:00]} 5. Nxe4 {[%emt 0:00:19]} Nbd7 {[%emt 0:00:34]} 6. Nf3 {[%emt 0:05:07]} Be7 {[%emt 0:01:30]} 7. Bd3 {[%emt 0:01:20]} Nxe4 {[%emt 0:01:56] C13: French: Classical System: 4 Bg5 Be7, Alekhine-Chatard Attack.} 8. Bxe7 {[%emt 0:00:05]} Qxe7 {[%emt 1:30:00]} 9. Bxe4 {[%emt 0:00:47]} Qb4+ {[%emt 0:00:00] [#]} 10. Ke2 $146 {[%emt 0:03:15]} ({Predecessor:} 10. Qd2 Qxd2+ 11. Nxd2 Nf6 12. Bf3 Bd7 13. O-O-O c6 14. Nc4 Ke7 15. Rhe1 a5 16. a4 {1-0 (41) Svrtan,Z (2042)-Zigovecki,V (1854) Krapina 2019}) 10... Qxb2 {[%emt 0:00:00]} 11. Re1 {[%emt 0:03:28]} Nf6 {[%emt 0:00:00]} 12. Bd3 {[%emt 0:02:28]} O-O {[%emt 0:00:00]} 13. Kf1 {[%emt 0:06:01]} b6 {[%emt 0:00:00]} 14. Qd2 {[%emt 0:16:31]} Qa3 {[%emt 0:00:00]} 15. Qf4 {[%emt 0:07:39]} Ba6 {[%emt 0:00:00]} 16. Bxa6 {[%emt 0:05:23]} Qxa6+ {[%emt 0:00:00]} 17. Kg1 {[%emt 0:00:09]} Rac8 {[%emt 0:00:00]} 18. Re5 {[%emt 0:01:47]} (18. Ne5 $17) 18... h6 {[%emt 0:00:00]} 19. g4 {[%emt 0:03:19]} c5 {[%emt 0:00:00]} 20. g5 {[%emt 0:08:43]} Nd7 {[%emt 0:00:00]} (20... Nd5 $17 21. Rxd5 exd5 22. gxh6 Rc6 23. hxg7 Rg6+ {[%mdl 64] Double Attack} 24. Kh1 Kxg7) 21. gxh6 {[%emt 0:00:08]} Nxe5 {[%emt 0:00:00]} 22. dxe5 {[%emt 0:01:12]} f5 {[%emt 0:00:00]} 23. Ng5 {[%emt 0:04:23]} b5 {[%emt 0:00:00]} 24. hxg7 {[%emt 0:01:17]} Kxg7 {[%emt 0:00:00]} 25. Kh1 {[%emt 0:02:05]} Qc6+ {[%emt 0:00:00]} 26. f3 $1 {[%emt 0:00:09]} Rh8 $2 {[%emt 0:00:00]} (26... Rg8 $1 $11) 27. Rg1 {[%emt 0:01:04]} Kf8 {[%emt 0:00:00]} 28. Rd1 {[%emt 0:02:10]} Re8 {[%emt 0:00:00]} 29. Rd6 {[%emt 0:00:29]} Qc8 {[%emt 0:00:00] [#]} 30. Qd2 $2 {[%emt 0:02:38]} ({White must play} 30. Rxe6 $1 $18 {[%mdl 512]} Qxe6 (30... Rxe6 31. Qxf5+) 31. Nxe6+ Rxe6 32. Qxf5+ Ke7 33. f4) 30... Kg7 $2 {[%emt 0:00:00]} (30... Rh6 $11) 31. Rd7+ {[%emt 0:02:08] Double Attack} Kg6 {[%emt 0:00:00] [#]} 32. Ne4 $2 {[%emt 0:05:58]} ({Not} 32. Nf7 Rh5 $14) (32. Nh3 $1 $18 {[%csl Gh3][%cal Rd2g5][%mdl 512]} Qxd7 (32... Rxh3 33. Qg2+) 33. Qxd7) 32... Qxd7 $1 {[%emt 0:07:01]} ({Inferior is} 32... fxe4 33. Qg2+ Kh5 34. Rg7 Qd8 35. Qg6+ {[%mdl 64] Double Attack} Kh4 36. Qg4#) 33. Qxd7 {[%emt 0:02:42]} fxe4 {[%emt 0:00:10]} 34. f4 {[%emt 0:00:48]} Kf5 {[%emt 0:05:49]} 35. Qf7+ {[%emt 0:00:12]} Kg4 {[%emt 0:00:00] [#]} 36. Kg2 $1 {[%emt 0:00:45]} Reg8 {[%emt 0:00:00]} 37. h3+ {[%emt 0:00:52]} Kh4+ {[%emt 0:00:00]} 38. Kh2 {[%emt 0:00:15]} e3 {[%emt 0:00:00]} 39. Qxe6 {[%emt 0:01:33]} e2 {[%emt 0:00:28]} 40. Qf6+ {[%emt 0:00:03]} Kh5 $18 {[%emt 0:02:32]} 1-0

[Event "7th Cattolica Open-B 2020"]
[Site "Cattolica"]
[Date "2020.09.03"]
[Round "4.9"]
[White "Giovannini, Roberto"]
[Black "Bosio, Andrea"]
[Result "1-0"]
[ECO "A46"]
[WhiteElo "1893"]
[BlackElo "1659"]
[Annotator "NA RC"]
[PlyCount "117"]
[EventDate "2020.08.31"]
[EventType "swiss"]
[EventCountry "ITA"]
[SourceTitle "playchess.com"]
[Source "ChessBase"]
[SourceQuality "1"]
[TimeControl "5400+30"]

{[%evp 8,94,0,-3,-3,-19,-4,-31,-8,-36,0,-29,-6,32767,32767,32767,32767,32767,33,8,32767,32767,32767,32767,32767,32767,32767,32767,32767,32767,32767,32767,-31,-108,0,-89,28,39,43,36,112,132,131,94,149,172,166,179,201,231,230,239,256,268,428,427,529,335,331,322,335,363,338,345,32767,351,32767,403,412,410,357,327,522,632,515,516,569,735,502,670,585,561,644,673,1204,6318,29981,32767,442]} 1. d4 {[%emt 0:00:00]} Nf6 {[%emt 0:00:00]} 2. Nf3 {[%emt 0:00:00]} e6 {[%emt 0:00:25]} 3. c3 {[%emt 0:01:41]} c5 {[%emt 0:00:49]} 4. e3 {[%emt 0:03:11]} b6 {[%emt 0:00:55]} 5. Nbd2 {[%emt 0:00:47]} Bb7 {[%emt 0:00:16]} 6. Be2 {[%emt 0:00:39] A46: 1 d4 Nf6 2 Nf3 e6: Torre, London and Colle Systems.} Be7 {[%emt 0:00:20]} 7. a4 {[%emt 0:01:11]} O-O {[%emt 0:00:45]} 8. O-O {[%emt 0:00:30] [#]} d6 $146 {[%emt 0:00:32]} ({Predecessor:} 8... cxd4 9. exd4 d6 10. Nc4 Nbd7 11. Bf4 Ne8 12. h3 f6 13. Re1 e5 14. dxe5 dxe5 {0-1 (64) Butala,S (2035)-Rogos,J (2103) Slovakia 2008}) 9. Re1 {[%emt 0:02:09]} Nbd7 {[%emt 0:02:42]} 10. Bf1 {[%emt 0:03:00]} cxd4 {[%emt 0:03:12]} 11. exd4 {[%emt 0:00:46]} Rc8 {[%emt 0:02:05]} 12. Nc4 {[%emt 0:01:15]} Ne4 {[%emt 0:03:02]} 13. Nfd2 {[%emt 0:05:03]} f5 {[%emt 0:02:31]} 14. f3 {[%emt 0:01:07]} Nxd2 {[%emt 0:03:05]} 15. Bxd2 {[%emt 0:00:37]} Nf6 {[%emt 0:05:37]} 16. Qe2 {[%emt 0:06:43]} Rf7 {[%emt 0:04:22]} 17. Na3 {[%emt 0:05:38]} e5 {[%emt 0:01:30]} 18. dxe5 {[%emt 0:04:51]} dxe5 {[%emt 0:00:34]} 19. Rad1 {[%emt 0:08:18]} e4 {[%emt 0:02:34]} 20. Bf4 {[%emt 0:02:47]} (20. Nb5 $11 {remains equal.}) 20... Qe8 {[%emt 0:03:44]} (20... Nd5 $17 21. Nc2 Bc5+ 22. Kh1 Qf6) 21. Nb5 {[%emt 0:04:04]} (21. Bd6 $1 $11 {remains equal.}) 21... a6 {[%emt 0:11:59]} (21... exf3 $17 22. gxf3 Bc5+ 23. Nd4 Re7 24. Qc4+ Nd5 25. Rxe7 Bxe7) 22. Nd6 {[%emt 0:04:19]} Bxd6 $1 {[%emt 0:00:17]} 23. Rxd6 {[%emt 0:01:26]} Rc6 {[%emt 0:02:06]} ({Black should try} 23... Qxa4 $14 24. fxe4 fxe4) 24. Qd1 {[%emt 0:01:39]} Rxd6 {[%emt 0:03:54]} 25. Qxd6 {[%emt 0:00:33]} Qc6 {[%emt 0:03:27]} 26. Qxc6 {[%emt 0:07:08]} Bxc6 {[%emt 0:00:02]} 27. fxe4 {[%emt 0:00:51]} fxe4 {[%emt 0:03:39]} 28. Bc4 {[%emt 0:05:21]} Bd5 {[%emt 0:01:37]} 29. Bxa6 {[%emt 0:00:27]} Nd7 {[%emt 0:02:07]} 30. Be3 {[%emt 0:01:25]} Rf5 {[%emt 0:05:07]} (30... Ne5 {was worth a try.} 31. Bxb6 Nc4) 31. Bc8 {[%emt 0:02:27]} Bc6 {[%emt 0:00:54]} 32. Bxb6 {[%emt 0:00:55]} Re5 {[%emt 0:01:00]} 33. Bd4 {[%emt 0:01:32]} Re8 {[%emt 0:00:17]} 34. Ba6 {[%emt 0:02:01]} Bxa4 {[%emt 0:00:35]} 35. Bc4+ {[%emt 0:00:30]} Kh8 {[%emt 0:00:34]} 36. Bd5 {[%emt 0:01:22]} Bc2 {[%emt 0:01:09]} 37. Kf2 {[%emt 0:01:25]} Nf6 {[%emt 0:00:54]} 38. Bxf6 {[%emt 0:00:38]} gxf6 {[%emt 0:00:01]} 39. g4 {[%emt 0:00:54]} Re5 {[%emt 0:00:53]} (39... Rd8 $142) 40. c4 {[%emt 0:00:36]} Kg7 {[%emt 0:00:39]} 41. Ke3 {[%emt 0:00:26]} Kg6 {[%emt 0:00:16]} 42. Kf4 {[%emt 0:00:22]} h5 {[%emt 0:01:27]} 43. Bxe4+ {[%emt 0:04:40]} Kg7 {[%emt 0:03:20]} 44. gxh5 {[%emt 0:01:15]} ({Worse is} 44. Bxc2 Rxe1 45. gxh5 Re2 $11) 44... Kh6 {[%emt 0:01:51]} 45. Re3 {[%emt 0:01:12]} ({Not} 45. Bxc2 Rxe1 46. Bd3 Rd1 $18) 45... Bd1 {[%emt 0:01:14]} 46. Bf3 {[%emt 0:01:55]} Bxf3 {[%emt 0:01:52]} 47. Kxf3 {[%emt 0:01:03]} (47. Rxe5 $142 Bg2 48. Re6) 47... Rxh5 {[%emt 0:00:14]} 48. Re2 {[%emt 0:00:44]} Rh4 {[%emt 0:00:12]} 49. Rc2 {[%emt 0:00:12]} Kg5 {[%emt 0:00:32]} 50. c5 {[%emt 0:00:40]} Kf5 {[%emt 0:01:02]} 51. c6 {[%emt 0:00:13]} Rh3+ {[%emt 0:00:16]} 52. Kg2 {[%emt 0:00:13]} Rh8 {[%emt 0:00:10]} 53. b4 {[%emt 0:00:20]} Ke6 {[%emt 0:00:23]} 54. b5 {[%emt 0:00:31]} Rb8 {[%emt 0:01:23]} 55. c7 {[%emt 0:00:17]} Rc8 {[%emt 0:00:08]} 56. b6 {[%emt 0:00:14]} Kd7 {[%emt 0:00:17]} 57. Kf3 {[%emt 0:00:11]} Kd6 {[%emt 0:00:40]} 58. b7 {[%emt 0:00:30]} Rxc7 {[%emt 0:00:09]} 59. b8=Q {[%emt 0:00:04]} 1-0

[Event "7th Cattolica Open-B 2020"]
[Site "Cattolica"]
[Date "2020.09.03"]
[Round "4.10"]
[White "Danese, Aldo"]
[Black "Gasperi, Fosco"]
[Result "1-0"]
[ECO "D10"]
[WhiteElo "1634"]
[BlackElo "1878"]
[Annotator "NA RC"]
[PlyCount "75"]
[EventDate "2020.08.31"]
[EventType "swiss"]
[EventCountry "ITA"]
[SourceTitle "playchess.com"]
[Source "ChessBase"]
[SourceQuality "1"]
[TimeControl "5400+30"]

{[%evp 8,75,29,0,1,32767,-12,-15,32767,32767,32767,32767,32767,32767,32767,32767,32767,32767,-1,-49,-19,0,0,0,14,18,33,25,87,8,75,60,83,97,148,51,59,38,43,20,49,18,23,12,148,150,139,146,172,66,85,0,50,0,100,70,143,18,141,123,216,267,369,275,238,261,572,664,6149,29990]} 1. c4 {[%emt 0:00:00]} c6 {[%emt 0:02:21]} 2. Nc3 {[%emt 0:00:00]} d5 {[%emt 0:00:13]} 3. cxd5 {[%emt 0:00:48]} cxd5 {[%emt 0:00:08]} 4. d4 {[%emt 0:00:04]} Nf6 {[%emt 0:00:27]} 5. e3 {[%emt 0:00:14]} Nc6 {[%emt 0:00:42]} 6. a3 {[%emt 0:00:09] D10: Slav Defence: 3 cxd5 (without early Nf3) and 3 Nc3.} Bf5 {[%emt 0:09:50]} 7. Nf3 {[%emt 0:01:25]} e6 {[%emt 0:00:52]} 8. Be2 {[%emt 0:00:15]} Bd6 {[%emt 0:00:44]} 9. Nh4 {[%emt 0:01:09] [#]} Be4 $146 {[%emt 0:03:39]} ({Predecessor:} 9... Bg6 10. Nxg6 hxg6 11. h3 Rc8 12. Bf3 a6 13. Bd2 b5 14. b4 Qc7 15. Rc1 Nd7 {½-½ (42) Deac,B-Benedek,I Voineasa 2010}) 10. Nxe4 {[%emt 0:01:30]} Nxe4 {[%emt 1:16:04]} 11. g3 {[%emt 0:00:40]} Qa5+ {[%emt 0:00:00]} 12. Kf1 {[%emt 0:01:13]} Qd8 {[%emt 0:00:00]} 13. Kg2 {[%emt 0:00:53]} O-O {[%emt 0:00:00]} (13... h5 $5) 14. Nf3 {[%emt 0:01:33]} Qf6 {[%emt 0:00:00]} 15. Rf1 {[%emt 0:01:09]} g5 {[%emt 0:00:00]} 16. Nd2 {[%emt 0:00:43]} Nxd2 {[%emt 0:00:00]} 17. Bxd2 {[%emt 0:01:09]} Rac8 {[%emt 0:00:00]} (17... Qg6 $11) 18. Bc3 {[%emt 0:00:16]} (18. Rh1 $16) 18... Ne7 {[%emt 0:00:00]} (18... Qe7 $11 {keeps the balance.}) 19. Rc1 {[%emt 0:00:41]} Rc7 {[%emt 0:00:00]} 20. Qa4 {[%emt 0:01:49]} a6 {[%emt 0:00:00] [#]} (20... Nc6 $142) 21. Ba5 {[%emt 0:00:55]} (21. Bb4 $1 $18 {[%cal Rb4d6]} Rxc1 22. Rxc1) 21... Rc6 {[%emt 0:00:00]} 22. Rxc6 {[%emt 0:00:59]} Nxc6 {[%emt 0:00:00]} 23. Bd2 {[%emt 0:00:23]} Qg7 {[%emt 0:00:00]} 24. b4 {[%emt 0:00:33]} f5 {[%emt 0:00:00]} 25. Rg1 {[%emt 0:04:53]} e5 {[%emt 0:00:00]} (25... Qf6 $11 {remains equal.}) 26. b5 {[%emt 0:01:17]} axb5 {[%emt 0:00:00]} 27. Qxb5 {[%emt 0:00:11]} Qf7 {[%emt 0:00:00] [#]} 28. Bf3 {[%emt 0:00:57]} (28. dxe5 $1 $18 Bxe5 29. Rb1) 28... e4 {[%emt 0:00:00] [#]} 29. Bd1 {[%emt 0:00:34]} ({White should play} 29. Bh5 $1 $16 {[%cal Rh5f7][%mdl 512]} Qxh5 30. Qxd5+ Rf7 31. Qxd6) 29... Rd8 {[%emt 0:00:00]} 30. Bb3 {[%emt 0:00:45]} (30. a4 $16) 30... Bf8 {[%emt 0:00:00]} (30... Bxa3 $11 {keeps the balance.} 31. Ra1 Bf8) 31. a4 {[%emt 0:00:23]} Kh8 {[%emt 0:00:00]} 32. a5 {[%emt 0:00:41]} ({Better is} 32. Rc1 $16) 32... Rd6 {[%emt 0:00:00]} (32... f4 $1 $11 {remains equal.}) 33. Rc1 {[%emt 0:00:43]} Qh5 {[%emt 0:00:00] [#]} (33... Na7 $16 {was called for.} 34. Qc5 Nc6) 34. Bd1 $1 {[%emt 1:18:06]} ({Worse is} 34. Bxd5 Rh6 $11) 34... g4 {[%emt 0:12:00]} 35. h4 {[%emt 0:00:00]} ({Don't blunder} 35. Qxb7 $2 Qh3+ 36. Kg1 Rh6 $19) 35... gxh3+ {[%emt 0:00:00]} 36. Kh2 {[%emt 0:00:00]} Qh6 $2 {[%emt 0:00:00]} (36... Qf7 37. Rb1 f4 38. exf4 Qg6) 37. Qxb7 {[%emt 0:00:00]} Nxd4 {[%emt 0:00:00] [#]} 38. Bc3 {[%emt 0:00:00] Pin} 1-0

[Event "7th Cattolica Open-B 2020"]
[Site "Cattolica"]
[Date "2020.09.04"]
[Round "5.2"]
[White "Ismayilov, Ulvi"]
[Black "Saviane, Giorgio"]
[Result "1-0"]
[ECO "D24"]
[WhiteElo "1713"]
[BlackElo "1643"]
[Annotator "NA RC"]
[PlyCount "119"]
[EventDate "2020.08.31"]
[EventType "swiss"]
[EventCountry "ITA"]
[SourceTitle "playchess.com"]
[Source "ChessBase"]
[SourceQuality "1"]
[TimeControl "5400+30"]

1. Nf3 {[%emt 0:00:00]} d5 {[%emt 0:00:07]} 2. c4 {[%emt 0:00:00]} e6 {[%emt 0:00:29]} 3. d4 {[%emt 0:00:22]} Nf6 {[%emt 0:00:29]} 4. Nc3 {[%emt 0:01:23]} c5 {[%emt 0:00:56]} 5. Bg5 {[%emt 0:05:23]} dxc4 {[%emt 0:03:59]} 6. e3 {[%emt 0:04:03]} Nbd7 {[%emt 0:01:18]} 7. Bxc4 {[%emt 0:03:26]} Be7 {[%emt 0:02:56]} 8. d5 {[%emt 0:06:01]} exd5 {[%emt 0:02:57]} 9. Nxd5 {[%emt 0:01:22]} Nxd5 {[%emt 0:04:42]} 10. Qxd5 {[%emt 0:00:21]} O-O {[%emt 0:00:10]} 11. Rd1 {[%emt 0:07:20]} Qa5+ {[%emt 0:01:34]} 12. Qd2 {[%emt 0:14:42]} Qxd2+ {[%emt 0:01:38]} 13. Rxd2 {[%emt 0:00:32]} Bxg5 {[%emt 0:01:49]} 14. Nxg5 {[%emt 0:00:24]} Ne5 {[%emt 0:01:53]} 15. Bd5 {[%emt 0:01:36]} Rb8 {[%emt 0:00:32]} 16. O-O {[%emt 0:02:02]} b5 {[%emt 0:00:58]} 17. Rc1 {[%emt 0:03:50]} c4 {[%emt 0:02:13]} 18. f4 {[%emt 0:07:58]} Nd3 {[%emt 0:00:45]} 19. Rc3 {[%emt 0:01:34]} h6 {[%emt 0:02:49]} 20. Nf3 {[%emt 0:02:54]} Re8 {[%emt 0:00:32]} 21. Ne5 {[%emt 0:06:09]} Nxe5 {[%emt 0:00:15]} 22. fxe5 {[%emt 0:00:03]} Rxe5 {[%emt 0:00:09]} 23. b3 {[%emt 0:04:36]} cxb3 {[%emt 0:00:50]} 24. Bxb3 {[%emt 0:00:26]} Re7 {[%emt 0:10:14]} 25. Rd8+ {[%emt 0:00:31]} Kh7 {[%emt 0:58:16]} 26. Rdxc8 {[%emt 0:00:50]} Rbb7 {[%emt 0:00:00]} 27. Kf2 {[%emt 0:01:17]} a5 {[%emt 0:00:00]} 28. Kf3 {[%emt 0:01:38]} Red7 {[%emt 0:00:00]} 29. Bc2+ {[%emt 0:00:00]} g6 {[%emt 0:00:00]} 30. Be4 {[%emt 0:00:00]} Ra7 {[%emt 0:00:00]} 31. Bc6 {[%emt 0:03:21]} Rd2 {[%emt 0:00:00]} 32. Bxb5 {[%emt 0:00:12]} Rxa2 {[%emt 0:00:00]} 33. R3c7 {[%emt 0:00:29]} Rxc7 {[%emt 0:00:00]} 34. Rxc7 {[%emt 0:00:09]} a4 {[%emt 0:00:00]} 35. Rxf7+ {[%emt 0:00:11]} Kh8 {[%emt 0:00:00]} 36. Ra7 {[%emt 0:00:16]} a3 {[%emt 0:00:00]} 37. h4 {[%emt 0:01:00]} Ra1 {[%emt 0:00:00]} 38. Bd3 {[%emt 0:00:46]} Kg8 {[%emt 0:00:00]} 39. Bxg6 {[%emt 0:00:28]} Kf8 {[%emt 0:00:00]} 40. Bd3 {[%emt 0:00:15]} Kg8 {[%emt 0:00:00]} 41. e4 {[%emt 0:00:15]} Kf8 {[%emt 0:00:00]} 42. g3 {[%emt 0:00:29]} Ke8 {[%emt 0:00:00]} 43. Kg4 {[%emt 0:00:12]} Kf8 {[%emt 0:00:00]} 44. Kh5 {[%emt 0:00:11]} Rg1 {[%emt 0:00:00]} 45. g4 {[%emt 0:00:35]} Rg3 {[%emt 0:00:00]} 46. Rxa3 {[%emt 0:00:10]} Kg7 {[%emt 0:00:00]} 47. e5 {[%emt 0:00:12]} Kf8 {[%emt 0:00:00]} 48. Ra8+ {[%emt 0:00:13]} Ke7 {[%emt 0:00:00]} 49. Bf5 {[%emt 0:00:24]} Rc3 {[%emt 0:00:00]} 50. Ra7+ {[%emt 0:00:05]} Ke8 {[%emt 0:00:00]} 51. Kxh6 {[%emt 0:00:07]} Rc6+ {[%emt 0:00:00]} 52. Bg6+ {[%emt 0:00:21]} Kf8 {[%emt 0:00:00]} 53. h5 {[%emt 0:00:09]} Re6 {[%emt 0:00:00]} 54. Ra8+ {[%emt 0:00:07]} Ke7 {[%emt 0:00:00]} 55. Re8+ {[%emt 0:00:02]} Kd7 {[%emt 0:00:00]} 56. Rxe6 {[%emt 0:00:01]} Kxe6 {[%emt 0:00:00]} 57. Kg7 {[%emt 0:00:07]} Kxe5 {[%emt 0:00:00]} 58. h6 {[%emt 0:00:03]} Kf4 {[%emt 0:00:00]} 59. h7 {[%emt 0:00:07]} Kxg4 {[%emt 0:00:00]} 60. h8=Q {[%emt 0:00:06]} 1-0

[Event "7th Cattolica Open-B 2020"]
[Site "Cattolica"]
[Date "2020.09.04"]
[Round "5.4"]
[White "Cirrincione, Giansalvo"]
[Black "Bianco, Paolo"]
[Result "0-1"]
[ECO "D02"]
[WhiteElo "1787"]
[BlackElo "1476"]
[Annotator "NA RC"]
[PlyCount "68"]
[EventDate "2020.08.31"]
[EventType "swiss"]
[EventCountry "ITA"]
[SourceTitle "playchess.com"]
[Source "ChessBase"]
[SourceQuality "1"]
[TimeControl "5400+30"]

1. d4 {[%emt 0:00:00]} Nf6 {[%emt 0:00:27]} 2. Bf4 {[%emt 0:00:00]} e6 {[%emt 0:00:30]} 3. e3 {[%emt 0:00:18]} c5 {[%emt 0:02:25]} 4. c3 {[%emt 0:00:00]} d5 {[%emt 0:00:20]} 5. Nd2 {[%emt 0:00:00]} Nc6 {[%emt 0:00:34]} 6. Ngf3 {[%emt 0:00:00]} Bd6 {[%emt 0:00:21]} 7. Bg3 {[%emt 0:00:02]} O-O {[%emt 0:00:50]} 8. Ne5 {[%emt 0:01:25]} Qe7 {[%emt 1:28:33]} 9. Bd3 {[%emt 0:01:03]} Nd7 {[%emt 0:00:00]} 10. Nxd7 {[%emt 0:01:47]} Bxd7 {[%emt 0:00:00]} 11. Bxd6 {[%emt 0:00:06]} Qxd6 {[%emt 0:00:00]} 12. dxc5 {[%emt 0:00:03]} Qc7 {[%emt 0:00:00]} 13. h4 {[%emt 0:16:50]} Rac8 {[%emt 0:00:00]} 14. Bxh7+ {[%emt 0:01:25]} Kxh7 {[%emt 0:00:00]} 15. Qh5+ {[%emt 0:01:33]} Kg8 {[%emt 0:00:00]} 16. Nf3 {[%emt 0:00:09]} f6 {[%emt 0:00:00]} 17. Ng5 {[%emt 0:01:17]} fxg5 {[%emt 0:00:00]} 18. hxg5 {[%emt 0:00:10]} Qe5 {[%emt 0:00:00]} 19. Rh3 {[%emt 0:11:57]} Rf5 {[%emt 0:00:00]} 20. g4 {[%emt 0:15:07]} Rf4 {[%emt 0:03:54]} 21. Kf1 {[%emt 0:09:42]} Rc4 {[%emt 0:00:48]} 22. Re1 {[%emt 0:07:34]} Be8 {[%emt 0:01:15]} 23. Qh8+ {[%emt 0:03:07]} Kf7 {[%emt 0:00:01]} 24. Rf3+ {[%emt 0:00:14]} Ke7 {[%emt 0:01:10]} 25. Qf8+ {[%emt 0:07:12]} Kd7 {[%emt 0:00:11]} 26. e4 {[%emt 0:04:23]} Rxe4 {[%emt 0:00:54]} 27. Rxe4 {[%emt 0:02:43]} dxe4 {[%emt 0:00:16]} 28. Re3 {[%emt 0:06:14]} Bg6 {[%emt 0:00:40]} 29. Qd6+ {[%emt 0:01:03]} Qxd6 {[%emt 0:00:02]} 30. cxd6 {[%emt 0:00:04]} Kxd6 {[%emt 0:00:10]} 31. Kg2 {[%emt 0:00:30]} Ne5 {[%emt 0:01:01]} 32. Kg3 {[%emt 0:00:28]} Rf8 {[%emt 0:00:22]} 33. Re2 {[%emt 0:00:55]} Rf3+ {[%emt 0:00:33]} 34. Kh4 {[%emt 0:00:47]} Rf4 {[%emt 0:00:36]} 0-1

[Event "7th Cattolica Open-B 2020"]
[Site "Cattolica"]
[Date "2020.09.04"]
[Round "5.5"]
[White "Pellegrini, Ennio Paolo"]
[Black "D`Agostino, Maurizio"]
[Result "0-1"]
[ECO "B01"]
[WhiteElo "1733"]
[BlackElo "1893"]
[Annotator "NA RC"]
[PlyCount "58"]
[EventDate "2020.08.31"]
[EventType "swiss"]
[EventCountry "ITA"]
[SourceTitle "playchess.com"]
[Source "ChessBase"]
[SourceQuality "1"]
[TimeControl "5400+30"]

{[%evp 9,58,59,52,34,51,0,50,89,66,-121,-134,-125,-142,-124,-133,32767,-187,-188,-188,-225,-230,-637,-159,-164,-193,-274,32767,32767,32767,32767,32767,32767,32767,-100,32767,32767,32767,32767,32767,32767,32767,-311,-321,-363,-306,-335,-338,-332,-339,-329,-346]} 1. e4 {[%emt 0:00:00]} d5 {[%emt 0:00:00]} 2. exd5 {[%emt 0:00:03]} Nf6 {[%emt 0:00:00]} 3. d4 {[%emt 0:00:21]} Bg4 {[%emt 0:00:05]} 4. Nf3 {[%emt 0:07:54]} Qxd5 {[%emt 1:31:55]} 5. Be2 {[%emt 0:03:58]} Nc6 {[%emt 0:00:00]} 6. O-O {[%emt 0:04:15]} O-O-O {[%emt 0:00:00]} 7. c4 {[%emt 0:04:40]} ({Better is} 7. Be3 $14) 7... Qf5 {[%emt 0:00:00] [#]} ({Black should try} 7... Qh5 $15) 8. Be3 $1 {[%emt 0:12:19]} e6 {[%emt 0:00:00] B01: Scandinavian Defence.} 9. a3 $2 {[%emt 0:08:34] [#]} (9. Qb3 $14 {stays ahead.}) 9... Bc5 $1 {[%emt 0:00:00] [#]} 10. Qb3 $146 {[%emt 0:27:56]} ({Predecessor:} 10. Qa4 Bxf3 11. Bxf3 Nxd4 12. Bxd4 Bxd4 13. Nc3 a6 14. Qb4 c6 15. Na4 Qf4 16. Nc5 Bxc5 17. Qxc5 {½-½ (23) Gunther,M (1881)-Kuck,U (1951) Maastricht 2010}) 10... Nxd4 {[%emt 0:00:00]} 11. Bxd4 {[%emt 0:00:30]} Bxd4 {[%emt 0:00:00]} 12. h3 {[%emt 0:05:44]} Bxf3 {[%emt 0:00:00]} 13. Bxf3 {[%emt 0:00:10]} Bb6 {[%emt 0:00:00]} 14. Nc3 {[%emt 0:00:52]} (14. Qb5 {was called for.}) 14... Rd3 {[%emt 0:00:00]} 15. Rad1 $2 {[%emt 0:04:41]} (15. c5 Qxc5 16. Be2) 15... Rhd8 $2 {[%emt 0:00:00]} (15... Rxf3 $19 {has better winning chances.} 16. gxf3 Qxf3) 16. Rxd3 {[%emt 0:01:17]} Rxd3 {[%emt 0:00:00]} 17. Rd1 {[%emt 0:00:22]} (17. Qb4 $142 c5 18. Qa4) 17... Rxf3 {[%emt 0:00:00]} 18. gxf3 {[%emt 0:05:53]} Qxf3 {[%emt 0:00:00]} 19. Qc2 {[%emt 0:00:28]} Qxh3 {[%emt 0:00:00]} 20. Qd2 {[%emt 0:01:57]} c6 {[%emt 0:00:00]} 21. Qd6 {[%emt 0:00:44]} Qg4+ {[%emt 0:00:00]} 22. Kf1 {[%emt 0:06:17]} Qxc4+ {[%emt 0:00:00]} 23. Ne2 {[%emt 0:00:46]} Qc5 {[%emt 0:00:00]} 24. Qf4 {[%emt 0:01:12]} Bc7 {[%emt 0:00:00]} 25. Qd2 {[%emt 0:00:48]} Qh5 {[%emt 0:00:00]} 26. Nc3 {[%emt 0:00:41]} Qh3+ {[%emt 0:00:00]} 27. Ke2 {[%emt 0:00:13]} Qg4+ {[%emt 0:00:00]} 28. Kf1 {[%emt 0:00:11]} h5 {[%emt 0:00:00]} 29. Qe3 {[%emt 0:00:55]} b6 $19 {[%emt 0:03:17]} 0-1